bitfinex-derivatives/quotes_BTCF0:USTF0_20250514
["timestamp","ask_amount","ask_price","bid_price","bid_amount"]
[1747229817202,0.2418395,104290.0,104280.0,2.48525983]
[1747229817894,0.4335836,104290.0,104280.0,2.48525983]
[1747229818497,0.4335836,104290.0,104280.0,2.21266276]
[1747229820507,0.4335836,104290.0,104280.0,2.48418276]
[1747229820809,1.03388067,104290.0,104280.0,1.78966276]
[1747229821000,1.03244117,104290.0,104280.0,1.78966276]
[1747229821201,0.7929441,104290.0,104280.0,1.78966276]
[1747229821397,0.4321441,104290.0,104280.0,1.78966276]
[1747229823401,0.4321441,104290.0,104280.0,2.02915983]
[1747229823597,0.2404,104290.0,104280.0,2.45225983]
[1747229823801,0.4321441,104290.0,104280.0,2.45225983]
[1747229824116,0.4321441,104290.0,104280.0,2.21276276]
[1747229824303,0.2404,104290.0,104280.0,2.45225983]
[1747229824511,0.4321441,104290.0,104280.0,2.48495983]
[1747229824811,0.2404,104290.0,104280.0,2.24546276]
[1747229825005,0.2404,104290.0,104280.0,2.48495983]
[1747229825610,0.21342071,104290.0,104280.0,2.48495983]
[1747229826307,0.05142071,104290.0,104280.0,2.48495983]
[1747229826514,0.05142071,104290.0,104280.0,2.82395129]
[1747229828112,0.05142071,104290.0,104280.0,2.58445422]
[1747229828317,0.05142071,104290.0,104280.0,2.82395129]
[1747229829315,0.01862071,104290.0,104280.0,2.82395129]
[1747229829510,0.01862071,104290.0,104280.0,2.58445422]
[1747229829814,0.24256481,104290.0,104280.0,2.40085422]
[1747229830024,0.75266188,104290.0,104280.0,1.84051963]
[1747229830316,1.27546188,104290.0,104280.0,1.84051963]
[1747229830501,1.03596481,104290.0,104280.0,1.84051963]
[1747229830702,1.27546188,104290.0,104280.0,1.84051963]
[1747229830910,1.62135388,104290.0,104280.0,0.34051963]
[1747229831218,1.62135388,104290.0,104250.0,0.00143865]
[1747229831219,0.1917993,104260.0,104250.0,0.00143865]
[1747229831412,1.12209637,104260.0,104250.0,0.00143865]
[1747229831607,1.21801637,104260.0,104250.0,1.59732971]
[1747229832119,0.8318393,104260.0,104250.0,1.59732971]
[1747229832319,0.1917993,104260.0,104250.0,1.62812971]
[1747229832522,0.1937993,104260.0,104250.0,1.65982971]
[1747229832720,0.1937993,104260.0,104250.0,1.85164741]
[1747229833116,0.1967993,104260.0,104250.0,1.66082971]
[1747229833311,0.1967993,104260.0,104250.0,1.85587977]
[1747229833507,0.3587993,104260.0,104250.0,1.85587977]
[1747229833709,0.3587993,104260.0,104250.0,2.04769747]
[1747229834021,0.3597993,104260.0,104250.0,1.79337977]
[1747229834209,0.3918993,104260.0,104250.0,1.79337977]
[1747229834516,0.4525993,104260.0,104250.0,1.79337977]
[1747229834712,0.4575993,104260.0,104250.0,1.82517977]
[1747229835209,0.4575993,104260.0,104250.0,1.85837977]
[1747229835410,1.0510267,104260.0,104250.0,1.79437977]
[1747229835603,2.2250667,104260.0,104250.0,1.79437977]
[1747229836519,2.2250667,104260.0,104250.0,1.59932971]
[1747229838213,2.2250667,104260.0,104250.0,0.06323061]
[1747229838415,2.4076941,104260.0,104250.0,1e-07]
[1747229838622,2.2250667,104260.0,104250.0,1e-07]
[1747229838808,0.1918177,104250.0,104240.0,0.01521649]
[1747229839005,0.1918361,104240.0,104230.0,0.2139268]
[1747229839205,0.8298635,104240.0,104230.0,0.4057068]
[1747229839409,0.8298635,104240.0,104230.0,0.50162546]
[1747229839720,0.8398635,104240.0,104230.0,1.8557174]
[1747229840111,1.0018635,104240.0,104230.0,1.8557174]
[1747229840314,1.0028635,104240.0,104230.0,1.8567174]
[1747229840716,1.0028635,104240.0,104230.0,1.8587174]
[1747229841421,1.0028635,104240.0,104230.0,1.6669374]
[1747229842522,1.0028635,104240.0,104230.0,1.8587174]
[1747229842720,1.0028635,104240.0,104230.0,1.6669374]
[1747229843123,1.2689835,104240.0,104230.0,1.6008374]
[1747229843315,1.2689835,104240.0,104210.0,0.00143936]
[1747229843316,2.2351108,104240.0,104210.0,0.00143936]
[1747229843520,2.2351108,104240.0,104210.0,0.03463936]
[1747229843521,1.2787277,104220.0,104210.0,0.03463936]
[1747229843718,0.1918913,104210.0,104200.0,0.27830806]
[1747229843917,1.1408187,104210.0,104200.0,1.74590806]
[1747229844221,1.5722187,104210.0,104200.0,0.23157946]
[1747229844421,0.1919097,104200.0,104190.0,0.15311824]
[1747229844614,1.5801045,104200.0,104190.0,0.15311824]
[1747229844818,1.6760765,104200.0,104190.0,1.65311824]
[1747229845016,0.1919466,104180.0,104170.0,0.03335992]
[1747229845319,0.795374,104180.0,104170.0,0.3211046]
[1747229845521,0.860074,104180.0,104170.0,0.3211046]
[1747229845909,0.800074,104180.0,104170.0,0.3211046]
[1747229846112,1.002074,104180.0,104170.0,1.8211046]
[1747229846510,0.963074,104180.0,104170.0,1.6009246]
[1747229846711,1.552154,104180.0,104170.0,1.50795992]
[1747229847018,1.552154,104180.0,104170.0,0.007]
[1747229847215,0.191965,104170.0,104160.0,0.0302]
[1747229847525,0.9995924,104170.0,104160.0,0.31797232]
[1747229847921,0.9995924,104170.0,104160.0,1.72198]
[1747229848119,1.1615924,104170.0,104160.0,1.5]
[1747229848425,0.1919834,104160.0,104150.0,2e-08]
[1747229848615,0.2400062,104150.0,104140.0,0.0302]
[1747229848926,0.2400062,104150.0,104140.0,1.72198]
[1747229848927,0.8476336,104150.0,104140.0,1.72198]
[1747229849123,1.0096336,104150.0,104140.0,1.72198]
[1747229849324,1.06721928,104150.0,104140.0,1.72198]
[1747229849520,1.06721928,104150.0,104140.0,2.01000183]
[1747229849724,1.06821928,104150.0,104140.0,1.85058153]
[1747229849924,1.06821928,104150.0,104140.0,1.69278]
[1747229850230,1.66873928,104150.0,104140.0,1.502]
[1747229850432,1.66873928,104150.0,104140.0,0.002]
[1747229850737,0.19180311,104140.0,104130.0,0.00096029]
[1747229850919,1.43667619,104140.0,104130.0,1.50096029]
[1747229851123,1.69470419,104140.0,104130.0,1.50096029]
[1747229851923,1.96414419,104140.0,104130.0,1.50096029]
[1747229852128,1.69330419,104140.0,104130.0,1.50096029]
[1747229852322,1.86931619,104140.0,104130.0,1.50096029]
[1747229852513,1.86939619,104140.0,104130.0,1.50096029]
[1747229852719,0.72870311,104140.0,104130.0,2.01240818]
[1747229852919,0.38550311,104140.0,104130.0,2.04310818]
[1747229853215,0.74730311,104140.0,104130.0,2.04210818]
[1747229853419,0.75030311,104140.0,104130.0,2.04210818]
[1747229853724,0.38950311,104140.0,104130.0,2.04210818]
[1747229854225,0.167,104140.0,104130.0,2.64312126]
[1747229854434,0.002,104160.0,104150.0,0.1920019]
[1747229854729,0.1939834,104160.0,104150.0,1.76148957]
[1747229854930,0.1939834,104160.0,104150.0,1.58257649]
[1747229855127,0.1939834,104160.0,104150.0,1.13812568]
[1747229855325,0.1939834,104160.0,104150.0,0.68616568]
[1747229855531,0.2301834,104160.0,104150.0,1.91652568]
[1747229855721,0.2301834,104160.0,104150.0,2.18616568]
[1747229855920,0.007,104160.0,104150.0,2.78717876]
[1747229856126,0.011,104160.0,104150.0,2.78817876]
[1747229856527,0.011,104160.0,104150.0,2.80265927]
[1747229856922,0.011,104160.0,104150.0,2.89867127]
[1747229857228,0.2029834,104160.0,104150.0,2.83332619]
[1747229857832,0.011,104160.0,104150.0,3.07353927]
[1747229858236,0.011,104160.0,104150.0,3.23553927]
[1747229858525,0.2929834,104160.0,104150.0,2.63452619]
[1747229858736,0.2929834,104160.0,104150.0,2.09400619]
[1747229859028,0.89399648,104160.0,104150.0,2.09400619]
[1747229859230,0.92539648,104160.0,104150.0,1.74009705]
[1747229859433,1.19809648,104160.0,104150.0,1.67290246]
[1747229859732,1.19809648,104160.0,104150.0,1.64220246]
[1747229860130,1.63129648,104160.0,104150.0,0.01557327]
[1747229860331,1.54064955,104160.0,104150.0,0.01557327]
[1747229861330,1.54064955,104160.0,104150.0,1.51557327]
[1747229861522,0.60393647,104160.0,104150.0,1.87270073]
[1747229861729,0.28393647,104160.0,104150.0,1.93600073]
[1747229862128,0.88494955,104160.0,104150.0,1.93600073]
[1747229862321,0.87494955,104160.0,104150.0,1.93600073]
[1747229862633,0.63473647,104160.0,104150.0,1.93600073]
[1747229863531,0.87494955,104160.0,104150.0,1.93600073]
[1747229863725,0.89494955,104160.0,104150.0,1.93600073]
[1747229863929,1.16574955,104160.0,104150.0,1.54949349]
[1747229864126,1.41574955,104160.0,104150.0,1.51749349]
[1747229864632,1.41574955,104160.0,104120.0,0.3188519]
[1747229864633,0.0480082,104140.0,104110.0,0.00192095]
[1747229864831,0.79307028,104120.0,104110.0,0.29219114]
[1747229865033,0.79307028,104120.0,104110.0,1.66512629]
[1747229865034,0.87307028,104120.0,104110.0,1.66512629]
[1747229865223,1.06627028,104120.0,104110.0,1.66512629]
[1747229865931,1.06627028,104120.0,104110.0,1.85920189]
[1747229866229,1.10007028,104120.0,104110.0,1.89800189]
[1747229866427,0.4662572,104120.0,104110.0,1.89800189]
[1747229866627,0.163,104120.0,104110.0,2.52981497]
[1747229866823,0.3540572,104120.0,104110.0,1.92580189]
[1747229867227,0.1920572,104120.0,104110.0,2.19616189]
[1747229867728,0.37287861,104140.0,104130.0,0.1920387]
[1747229867939,0.24566171,104140.0,104130.0,0.25923329]
[1747229868237,0.40766171,104140.0,104130.0,0.35563329]
[1747229868428,0.40766171,104140.0,104130.0,2.31248092]
[1747229868934,0.41066171,104140.0,104130.0,2.31348092]
[1747229870036,0.41266171,104140.0,104130.0,2.31448092]
[1747229870234,0.407041,104140.0,104130.0,2.31448092]
[1747229870534,0.167,104140.0,104130.0,2.31448092]
[1747229870736,0.3590203,104140.0,104130.0,2.31448092]
[1747229871139,0.1970203,104140.0,104130.0,2.31448092]
[1747229871345,0.1970203,104140.0,104130.0,1.95368092]
[1747229871631,0.1970203,104140.0,104130.0,1.88648633]
[1747229871827,0.1970203,104140.0,104130.0,1.95368092]
[1747229872433,0.2285203,104140.0,104130.0,1.95368092]
[1747229873139,0.82953338,104140.0,104130.0,1.76164222]
[1747229873327,1.06953338,104140.0,104130.0,0.16284763]
[1747229873532,1.10103338,104140.0,104130.0,0.16284763]
[1747229873831,1.10103338,104140.0,104130.0,1.62964763]
[1747229874025,1.71798138,104140.0,104130.0,1.502]
[1747229874229,1.91118138,104140.0,104130.0,1.502]
[1747229874435,1.91118138,104140.0,104130.0,0.002]
[1747229875028,1.0540203,104140.0,104130.0,0.1940387]
[1747229875229,1.2914003,104140.0,104130.0,0.29143329]
[1747229875426,0.7513203,104140.0,104130.0,0.32233329]
[1747229876733,0.7513203,104140.0,104130.0,0.33659352]
[1747229877843,0.3905203,104140.0,104130.0,0.36542812]
[1747229878032,0.7513203,104140.0,104130.0,0.43262271]
[1747229878236,0.82953338,104140.0,104130.0,0.43262271]
[1747229878542,1.02953338,104140.0,104130.0,0.20968401]
[1747229878744,1.06033338,104140.0,104130.0,0.20968401]
[1747229879137,1.25323338,104140.0,104130.0,0.20968401]
[1747229880133,1.25323338,104140.0,104130.0,0.14248942]
[1747229880333,1.34926138,104140.0,104130.0,0.01626023]
[1747229880533,1.40724108,104140.0,104110.0,0.03442095]
[1747229880750,1.15387028,104120.0,104110.0,0.29179114]
[1747229881041,1.23387028,104120.0,104110.0,1.88782033]
[1747229881241,1.46047028,104120.0,104110.0,1.69574473]
[1747229881550,1.46609099,104120.0,104110.0,1.62855014]
[1747229881736,1.46609099,104120.0,104110.0,1.62955014]
[1747229881938,1.46709099,104120.0,104110.0,1.82362574]
[1747229882235,1.30509099,104120.0,104110.0,1.82362574]
[1747229882442,1.29947028,104120.0,104110.0,1.63155014]
[1747229882745,0.1920756,104110.0,104100.0,0.34310998]
[1747229882939,1.76826868,104110.0,104100.0,0.34310998]
[1747229883134,0.1920941,104100.0,104090.0,0.28987116]
[1747229883340,0.1920941,104100.0,104090.0,1.78987116]
[1747229883341,1.73376718,104100.0,104090.0,1.78987116]
[1747229884544,1.73476718,104100.0,104090.0,1.79387116]
[1747229884844,1.73576718,104100.0,104090.0,0.29387116]
[1747229885042,2.08083518,104100.0,104090.0,0.22183886]
[1747229885245,2.24283518,104100.0,104090.0,0.22283886]
[1747229885547,1.7526221,104100.0,104090.0,0.19247366]
[1747229885738,0.192131,104080.0,104070.0,0.50700345]
[1747229886044,2.28107716,104080.0,104070.0,0.44340345]
[1747229886347,2.47146116,104080.0,104070.0,0.44340345]
[1747229886651,2.47146116,104080.0,104070.0,0.00192169]
[1747229886652,2.23112808,104080.0,104070.0,0.00192169]
[1747229887543,2.23112808,104080.0,104070.0,0.00592169]
[1747229887544,2.23312808,104080.0,104070.0,0.00592169]
[1747229887738,2.20154808,104080.0,104070.0,0.03632169]
[1747229888042,2.20054808,104080.0,104070.0,0.03232169]
[1747229888238,2.20054808,104080.0,104070.0,0.03332169]
[1747229888542,2.23354808,104080.0,104070.0,0.03332169]
[1747229888933,1.80764408,104080.0,104070.0,0.29266568]
[1747229889241,1.024731,104080.0,104070.0,0.48636568]
[1747229889443,0.914731,104080.0,104070.0,0.58245023]
[1747229889638,1.15494408,104080.0,104070.0,0.58245023]
[1747229889840,1.18504408,104080.0,104070.0,0.58245023]
[1747229890240,1.18504408,104080.0,104070.0,0.39030083]
[1747229890444,1.75525716,104080.0,104070.0,0.19532169]
[1747229890643,1.274831,104080.0,104070.0,0.16492169]
[1747229890940,1.51504408,104080.0,104070.0,0.23211628]
[1747229891136,1.54774408,104080.0,104070.0,0.26411628]
[1747229891338,1.54774408,104080.0,104070.0,0.19692169]
[1747229891849,1.56191144,104080.0,104070.0,0.19692169]
[1747229892041,1.94624392,104080.0,104070.0,1.5]
[1747229892244,0.1921679,104060.0,104050.0,0.25674643]
[1747229892442,1.15398098,104060.0,104050.0,0.32394202]
[1747229892649,1.51756098,104060.0,104050.0,0.22784017]
[1747229893046,0.1921864,104050.0,104040.0,0.00144164]
[1747229893347,1.59469148,104050.0,104040.0,0.01622076]
[1747229893640,1.59469148,104050.0,104040.0,0.01477912]
[1747229893844,0.1922049,104040.0,104030.0,0.00192243]
[1747229894050,1.22751798,104040.0,104030.0,0.00192243]
[1747229894234,1.86623799,104040.0,104030.0,0.00192243]
[1747229894436,2.35645107,104040.0,104030.0,3e-08]
[1747229895137,2.51817107,104040.0,104030.0,3e-08]
[1747229895835,2.52417107,104040.0,104030.0,3e-08]
[1747229896447,0.1922418,104020.0,104010.0,0.0009614]
[1747229896751,1.52405488,104020.0,104010.0,0.0009614]
[1747229897048,2.29348066,104020.0,104010.0,0.0009614]
[1747229897245,0.1922788,104000.0,103990.0,2.0953891]
[1747229897447,1.1026642,104020.0,104000.0,0.048067]
[1747229897756,1.4176853,104020.0,104010.0,0.09789459]
[1747229898054,0.1922603,104010.0,104000.0,0.09615846]
[1747229898237,0.85817338,104010.0,104000.0,0.32535305]
[1747229898547,1.23817338,104010.0,104000.0,0.162]
[1747229898749,1.23817338,104010.0,104000.0,0.16]
[1747229898946,1.33432138,104010.0,104000.0,0.16]
[1747229899739,0.0480707,104000.0,103970.0,0.00240439]
[1747229900037,1.15412888,103980.0,103970.0,0.00096177]
[1747229900244,1.53412888,103980.0,103970.0,0.00096177]
[1747229900448,1.1767158,103980.0,103970.0,0.00096177]
[1747229900653,1.1139158,103980.0,103970.0,0.53220374]
[1747229900950,0.6011859,103990.0,103980.0,0.1923158]
[1747229901246,0.6011859,103990.0,103980.0,0.13039459]
[1747229901445,0.1923158,103980.0,103970.0,0.19646177]
[1747229901637,1.12672888,103980.0,103970.0,0.26235636]
[1747229901839,0.8875158,103980.0,103970.0,0.26235636]
[1747229902038,0.8875158,103980.0,103970.0,0.48779066]
[1747229902245,0.8875158,103980.0,103970.0,0.58395837]
[1747229902246,0.2348158,103980.0,103970.0,0.58395837]
[1747229902451,0.2023158,103980.0,103970.0,0.58395837]
[1747229902643,0.7136638,103990.0,103980.0,0.1923158]
[1747229902845,0.001,103990.0,103980.0,0.96482347]
[1747229903040,0.001,103990.0,103980.0,0.99722347]
[1747229903041,0.1932973,103990.0,103980.0,0.99722347]
[1747229903239,0.1932973,103990.0,103980.0,1.25540043]
[1747229903452,0.001,103990.0,103980.0,1.25540043]
[1747229903647,0.1932973,103990.0,103980.0,0.89460043]
[1747229903950,0.3042973,103990.0,103980.0,0.61538735]
[1747229904250,0.5550973,103990.0,103980.0,0.85560043]
[1747229904647,0.5540973,103990.0,103980.0,0.85560043]
[1747229904850,0.5540973,103990.0,103980.0,0.42307155]
[1747229905051,0.6264973,103990.0,103980.0,0.32689459]
[1747229905245,1.2075773,103990.0,103980.0,0.29449459]
[1747229905642,1.2085773,103990.0,103980.0,0.29449459]
[1747229905848,1.2085773,103990.0,103980.0,0.50165437]
[1747229906043,1.1039773,103990.0,103980.0,0.83803516]
[1747229906244,0.5550973,103990.0,103980.0,0.83803516]
[1747229906449,0.3628,103990.0,103980.0,0.83803516]
[1747229906646,0.002,103990.0,103980.0,1.23883516]
[1747229906850,0.1942973,103990.0,103980.0,1.23883516]
[1747229907153,0.002,103990.0,103980.0,2.73883516]
[1747229907450,0.00144349,104010.0,104000.0,0.1922788]
[1747229907656,0.19370379,104010.0,104000.0,1.59639955]
[1747229907856,0.00144349,104010.0,104000.0,1.59639955]
[1747229908054,0.19370379,104010.0,104000.0,1.69256726]
[1747229908356,0.19370379,104010.0,104000.0,1.21355418]
[1747229908555,0.19370379,104010.0,104000.0,1.25355418]
[1747229908753,0.19570379,104010.0,104000.0,0.9733411]
[1747229909055,0.19570379,104010.0,104000.0,1.21355418]
[1747229909457,0.00344349,104010.0,104000.0,1.25355418]
[1747229909860,0.19570379,104010.0,104000.0,1.25355418]
[1747229910053,0.00344349,104010.0,104000.0,1.25355418]
[1747229910353,0.19570379,104010.0,104000.0,1.61435418]
[1747229910659,0.19970379,104010.0,104000.0,1.61535418]
[1747229911157,0.00744349,104010.0,104000.0,1.85556726]
[1747229911359,0.19970379,104010.0,104000.0,1.85556726]
[1747229911858,0.2883458,104030.0,104020.0,0.1922418]
[1747229912048,0.2883458,104030.0,104020.0,0.49964947]
[1747229912251,0.1942179,104040.0,104030.0,0.1922233]
[1747229912451,0.002,104040.0,104030.0,0.95483097]
[1747229912649,0.1942049,104040.0,104030.0,2.49483097]
[1747229913157,0.1942049,104040.0,104030.0,2.71857317]
[1747229913357,0.1942049,104040.0,104030.0,2.52634987]
[1747229913548,0.1942049,104040.0,104030.0,2.11756009]
[1747229913750,0.1942049,104040.0,104030.0,2.71857317]
[1747229913951,0.5550049,104040.0,104030.0,2.16554987]
[1747229914162,0.5550049,104040.0,104030.0,1.8581422]
[1747229914458,0.6600049,104040.0,104030.0,1.8581422]
[1747229914958,0.2992049,104040.0,104030.0,2.35215246]
[1747229915164,0.1942049,104040.0,104030.0,2.71295246]
[1747229915458,0.5630049,104040.0,104030.0,2.16192916]
[1747229915657,0.2022049,104040.0,104030.0,2.73495246]
[1747229918457,0.01,104040.0,104030.0,2.73495246]
[1747229918661,0.2022049,104040.0,104030.0,2.73495246]
[1747229919249,0.2022049,104040.0,104030.0,1.94171608]
[1747229919450,0.2350049,104040.0,104030.0,2.37415246]
[1747229920865,0.00144316,104050.0,104040.0,0.1922049]
[1747229921162,0.19363146,104050.0,104040.0,1.12571257]
[1747229921570,0.19363146,104050.0,104040.0,2.36103406]
[1747229921755,0.58713146,104050.0,104040.0,1.88861608]
[1747229921953,0.67753146,104050.0,104040.0,1.82242149]
[1747229922152,0.68353146,104050.0,104040.0,1.82242149]
[1747229922455,0.65113146,104050.0,104040.0,2.32203406]
[1747229922661,0.65113146,104050.0,104040.0,2.70283406]
[1747229922662,0.20763146,104050.0,104040.0,2.70283406]
[1747229923060,0.20763146,104050.0,104040.0,2.68283406]
[1747229923260,0.20763146,104050.0,104040.0,2.08182098]
[1747229923461,0.60143146,104050.0,104040.0,2.12982916]
[1747229923661,0.64453146,104050.0,104040.0,1.88961608]
[1747229923865,0.63853146,104050.0,104040.0,1.88961608]
[1747229924067,0.64253146,104050.0,104040.0,2.08282098]
[1747229924265,0.62953146,104050.0,104040.0,2.32303406]
[1747229924462,0.01044316,104050.0,104040.0,2.72383406]
[1747229924766,0.20262956,104050.0,104040.0,2.36303406]
[1747229924966,0.20262956,104050.0,104040.0,2.17082916]
[1747229925162,0.59642956,104050.0,104040.0,1.89061608]
[1747229925368,0.97922956,104050.0,104040.0,1.89061608]
[1747229925868,0.71922956,104050.0,104040.0,2.32303406]
[1747229926560,0.71922956,104050.0,104040.0,2.25583947]
[1747229926761,0.26842956,104050.0,104040.0,2.36303406]
[1747229927065,0.2402266,104060.0,104050.0,0.1921864]
[1747229927270,0.2711051,104070.0,104060.0,0.1921679]
[1747229927466,0.2711051,104070.0,104060.0,0.50568089]
[1747229927673,0.3039051,104070.0,104060.0,2.10179314]
[1747229927867,0.002,104080.0,104070.0,0.1921494]
[1747229928067,0.194131,104080.0,104070.0,1.28488079]
[1747229928473,0.194131,104080.0,104070.0,2.88097457]
[1747229929065,0.194131,104080.0,104070.0,2.69775617]
[1747229929371,0.198131,104080.0,104070.0,2.69875617]
[1747229929564,0.351331,104080.0,104070.0,2.71599412]
[1747229929763,0.262331,104080.0,104070.0,2.71599412]
[1747229930370,0.265331,104080.0,104070.0,2.71599412]
[1747229931177,0.201131,104080.0,104070.0,2.75599412]
[1747229931668,0.201131,104080.0,104070.0,2.15473777]
[1747229931863,0.201131,104080.0,104070.0,2.75599412]
[1747229932064,0.233131,104080.0,104070.0,2.39519412]
[1747229932375,0.201131,104080.0,104070.0,2.39519412]
[1747229932567,0.201131,104080.0,104070.0,2.75599412]
[1747229933977,0.201131,104080.0,104070.0,2.20304472]
[1747229934169,0.233131,104080.0,104070.0,2.39519412]
[1747229934473,0.233131,104080.0,104070.0,2.75599412]
[1747229935069,0.009,104080.0,104070.0,3.03191412]
[1747229935370,0.374033,104100.0,104090.0,0.1921125]
[1747229935574,0.374033,104100.0,104090.0,0.86056344]
[1747229935777,0.374033,104100.0,104090.0,2.45526344]
[1747229935973,0.05145771,104120.0,104100.0,0.2401031]
[1747229936178,0.2881301,104110.0,104100.0,0.8674416]
[1747229936365,0.336151,104110.0,104100.0,1.10789795]
[1747229936567,0.336151,104110.0,104100.0,2.77115863]
[1747229937071,0.369051,104110.0,104100.0,2.77115863]
[1747229937381,0.3210301,104110.0,104100.0,2.93315863]
[1747229937881,0.3210301,104110.0,104100.0,2.69270228]
[1747229938175,0.3210301,104110.0,104100.0,2.93315863]
[1747229938877,0.3240301,104110.0,104100.0,2.93315863]
[1747229939269,0.3240301,104110.0,104100.0,1.86526068]
[1747229939477,0.3240301,104110.0,104100.0,2.57233113]
[1747229939866,0.3260301,104110.0,104100.0,2.57233113]
[1747229940571,0.005,104110.0,104100.0,2.57233113]
[1747229940784,0.1920756,104110.0,104100.0,2.93313113]
[1747229940969,0.11425771,104120.0,104100.0,2.69267478]
[1747229941171,0.22659961,104120.0,104110.0,0.49972654]
[1747229941379,0.22659961,104120.0,104110.0,0.93292654]
[1747229941380,0.19549961,104120.0,104110.0,0.93292654]
[1747229941681,0.00344191,104120.0,104110.0,0.93292654]
[1747229941879,0.6978577,104140.0,104130.0,0.1920387]
[1747229942068,0.7303447,104140.0,104130.0,1.93249505]
[1747229942272,0.7303447,104140.0,104130.0,1.93525635]
[1747229942572,0.7303447,104140.0,104130.0,1.85804222]
[1747229942775,0.7623447,104140.0,104130.0,1.85804222]
[1747229943078,0.7673447,104140.0,104130.0,1.85804222]
[1747229943475,0.7773447,104140.0,104130.0,1.85804222]
[1747229944076,0.7823447,104140.0,104130.0,2.09849857]
[1747229944767,0.0435,104140.0,104130.0,2.65133727]
[1747229944967,0.011,104140.0,104130.0,2.69133727]
[1747229945186,0.011,104140.0,104130.0,2.96557727]
[1747229945392,0.2030203,104140.0,104130.0,2.96557727]
[1747229945682,0.2030203,104140.0,104130.0,2.92557727]
[1747229946069,0.2030203,104140.0,104130.0,2.96557727]
[1747229946274,0.1980203,104140.0,104130.0,2.21884222]
[1747229946469,0.6220203,104140.0,104130.0,1.79084763]
[1747229946886,0.8120203,104140.0,104130.0,1.79084763]
[1747229947068,0.2562203,104140.0,104130.0,2.22334268]
[1747229947273,0.004,104140.0,104130.0,1.19133727]
[1747229947783,0.1960203,104140.0,104130.0,2.69133727]
[1747229948085,0.1940203,104140.0,104130.0,2.49929857]
[1747229948296,0.2268203,104140.0,104130.0,2.33053727]
[1747229948579,0.0348,104140.0,104130.0,2.69133727]
[1747229948784,0.1920032,104150.0,104140.0,0.2880104]
[1747229948985,0.1920032,104150.0,104140.0,0.54765734]
[1747229949186,0.2248032,104150.0,104140.0,0.70965734]
[1747229949386,0.2248032,104150.0,104140.0,0.80568653]
[1747229949585,0.2248032,104150.0,104140.0,0.83698653]
[1747229949972,0.2248032,104150.0,104140.0,0.78898433]
[1747229950698,0.2278032,104150.0,104140.0,0.78898433]
[1747229951195,0.2278032,104150.0,104140.0,0.82138433]
[1747229951397,0.2298032,104150.0,104140.0,0.79387986]
[1747229951690,0.2298032,104150.0,104140.0,0.58094408]
[1747229951882,0.2298032,104150.0,104140.0,0.76389596]
[1747229953486,0.2298032,104150.0,104140.0,0.78389596]
[1747229954880,0.2298032,104150.0,104140.0,2.28389596]
[1747229955081,0.2298019,104150.0,104140.0,2.28389596]
[1747229956390,0.005,104150.0,104140.0,2.64469596]
[1747229956892,0.005,104150.0,104140.0,2.46174408]
[1747229957095,0.005,104150.0,104140.0,2.64469596]
[1747229958190,0.21582574,104170.0,104160.0,0.1919834]
[1747229958381,0.21582574,104170.0,104160.0,1.25744175]
[1747229958578,0.24702574,104170.0,104160.0,1.13908987]
[1747229958782,0.27872574,104170.0,104160.0,1.23510984]
[1747229959186,0.27872574,104170.0,104160.0,1.39710984]
[1747229959393,0.28472574,104170.0,104160.0,1.39710984]
[1747229959583,0.25302574,104170.0,104160.0,1.58006172]
[1747229959785,0.25302574,104170.0,104160.0,1.39710984]
[1747229960194,0.25802574,104170.0,104160.0,1.39710984]
[1747229960398,0.28972574,104170.0,104160.0,1.42710984]
[1747229960897,0.28372574,104170.0,104160.0,1.06630984]
[1747229961193,0.28372574,104170.0,104160.0,1.24415796]
[1747229961398,0.28372574,104170.0,104160.0,1.03630984]
[1747229961591,0.27872574,104170.0,104160.0,1.03730984]
[1747229961795,0.27872574,104170.0,104160.0,0.76574984]
[1747229962092,0.27872574,104170.0,104160.0,1.03726984]
[1747229962294,0.05505884,104170.0,104160.0,3.12102172]
[1747229962491,0.40053,104180.0,104170.0,0.191965]
[1747229962692,0.40053,104180.0,104170.0,0.50571147]
[1747229962894,0.2237617,104180.0,104170.0,0.90651147]
[1747229963195,0.2237617,104180.0,104170.0,1.16450379]
[1747229963392,0.2237617,104180.0,104170.0,1.19570379]
[1747229963590,0.1929617,104180.0,104170.0,1.19570379]
[1747229963790,0.1949617,104180.0,104170.0,1.19570379]
[1747229964202,0.535556,104190.0,104170.0,1.19570379]
[1747229964203,0.2707271,104190.0,104180.0,0.1919466]
[1747229964500,0.2707271,104190.0,104180.0,0.87649307]
[1747229964893,0.1348,104200.0,104190.0,0.1919281]
[1747229965197,0.2939097,104200.0,104190.0,1.05912645]
[1747229965584,0.00144055,104210.0,104200.0,0.1919097]
[1747229965790,0.22603185,104210.0,104200.0,0.90765617]
[1747229965988,0.22603185,104210.0,104200.0,1.17913617]
[1747229966298,0.22603185,104210.0,104200.0,2.73511006]
[1747229967090,0.22603185,104210.0,104200.0,2.70520036]
[1747229967289,0.22603185,104210.0,104200.0,2.53631006]
[1747229967290,0.58683185,104210.0,104200.0,2.53631006]
[1747229967491,0.58783185,104210.0,104200.0,2.53631006]
[1747229967700,0.58783185,104210.0,104200.0,2.35335818]
[1747229967899,0.58783185,104210.0,104200.0,2.53631006]
[1747229968299,0.58983185,104210.0,104200.0,2.53631006]
[1747229968699,0.58983185,104210.0,104200.0,2.35335818]
[1747229968897,0.58983185,104210.0,104200.0,2.53631006]
[1747229969087,0.62183185,104210.0,104200.0,2.53631006]
[1747229969289,0.003,104210.0,104200.0,2.57631006]
[1747229969589,0.395,104220.0,104210.0,0.1918913]
[1747229969895,0.3618,104220.0,104210.0,0.71472318]
[1747229970203,0.0332,104230.0,104220.0,0.1918729]
[1747229970394,0.0332,104230.0,104220.0,1.32761125]
[1747229970803,0.0332,104230.0,104220.0,1.42357593]
[1747229971196,0.0332,104230.0,104220.0,1.40262405]
[1747229971693,0.0659,104230.0,104220.0,1.40262405]
[1747229972394,0.0659,104230.0,104220.0,1.13118405]
[1747229972595,0.2577545,104230.0,104220.0,0.99674405]
[1747229972796,0.2587545,104230.0,104220.0,0.90823217]
[1747229973101,0.0669,104230.0,104220.0,1.10118405]
[1747229973402,0.2587545,104230.0,104220.0,1.10118405]
[1747229974096,0.2587545,104230.0,104220.0,1.09118405]
[1747229974293,0.0669,104230.0,104220.0,1.09118405]
[1747229974492,0.2587545,104230.0,104220.0,1.10118405]
[1747229975094,0.0362,104230.0,104220.0,1.28413593]
[1747229975489,0.2280545,104230.0,104220.0,0.91823217]
[1747229975799,0.0679,104230.0,104220.0,1.10118405]
[1747229976905,0.0679,104230.0,104220.0,1.10680476]
[1747229977209,0.003,104230.0,104220.0,1.28975664]
[1747229977506,0.001,104260.0,104250.0,0.1918177]
[1747229977701,0.0345,104260.0,104250.0,1.05731605]
[1747229977892,0.0345,104260.0,104250.0,2.55731605]
[1747229978093,0.0345,104260.0,104250.0,2.81523471]
[1747229978896,0.0345,104260.0,104250.0,2.98601095]